bitfinex-derivatives/quotes_ETHF0:USTF0_20251210
["timestamp","ask_amount","ask_price","bid_price","bid_amount"]
[1765355772105,2.99983482,3326.1,3326.0,1.371]
[1765355772395,2.34952668,3326.1,3326.0,1.371]
[1765355772891,1.42531079,3326.4,3326.3,1.371]
[1765355773088,3.26434337,3326.4,3326.3,1.371]
[1765355773902,3.00416841,3326.4,3326.3,1.371]
[1765355774701,2.28536841,3326.4,3326.3,1.371]
[1765355775101,3.00416841,3326.4,3326.3,1.371]
[1765355775305,0.65464173,3326.4,3326.3,1.371]
[1765355775701,1.35664173,3326.4,3326.3,1.371]
[1765355776609,2.07544173,3326.4,3326.3,1.371]
[1765355777402,2.07544173,3326.4,3326.3,0.6844]
[1765355778102,1.4208,3326.3,3326.2,3.2078]
[1765355778304,0.702,3325.9,3325.8,4.5788]
[1765355779805,2.34952668,3326.1,3326.0,1.371]
[1765355781106,1.63072668,3326.1,3326.0,1.371]
[1765355781404,1.63072668,3326.1,3326.0,1.8001]
[1765355781602,2.34952668,3326.1,3326.0,1.371]
[1765355783305,1.63072668,3326.1,3326.0,1.371]
[1765355785496,0.92872668,3326.1,3326.0,1.8001]
[1765355785907,1.63072668,3326.1,3326.0,1.8001]
[1765355786306,1.42531079,3326.4,3326.3,1.371]
[1765355786508,2.99651938,3326.4,3326.3,0.6844]
[1765355786807,1.4208,3326.1,3326.0,1.8001]
[1765355787008,1.4208,3326.1,3326.0,1.371]
[1765355787204,2.34952668,3326.1,3326.0,1.371]
[1765355787408,1.4208,3325.9,3325.8,4.5788]
[1765355791206,0.702,3325.9,3325.8,4.5788]
[1765355791707,1.4208,3325.9,3325.8,4.5788]
[1765355794614,0.702,3325.9,3325.8,4.5788]
[1765355795412,1.4208,3325.9,3325.8,4.5788]
[1765355795613,1.4208,3325.8,3325.7,0.00451079]
[1765355795814,2.99252415,3325.8,3325.7,0.00451079]
[1765355796813,2.06379747,3325.8,3325.7,0.00451079]
[1765355797116,2.99252415,3325.8,3325.7,0.00451079]
[1765355797432,0.64299747,3325.8,3325.7,5.70837747]
[1765355797636,1.62025473,3326.4,3326.3,1.4615]
[1765355797925,0.64750826,3326.4,3326.3,1.4615]
[1765355798129,0.00451079,3326.4,3326.3,1.4615]
[1765355799130,0.00451079,3326.4,3326.3,1.61182]
[1765355800431,0.71711079,3326.4,3326.3,1.61182]
[1765355801836,1.40541079,3326.4,3326.3,0.15032]
[1765355802134,2.04811575,3326.4,3326.3,0.15032]
[1765355802340,1.40541079,3326.4,3326.3,0.15032]
[1765355805040,1.4009,3326.2,3326.1,4.6693]
[1765355805240,2.32962668,3326.2,3326.1,4.6693]
[1765355806440,1.64132668,3326.2,3326.1,4.6693]
[1765355806839,2.32962668,3326.2,3326.1,4.6693]
[1765355808740,0.92872668,3326.2,3326.1,4.6693]
[1765355808940,0.00451079,3326.4,3326.3,1.4615]
[1765355810938,0.71711079,3326.4,3326.3,1.4615]
[1765355811541,0.00451079,3326.4,3326.3,1.4615]
[1765355811741,0.00451079,3326.4,3326.3,1.61182]
[1765355811935,0.00235215,3326.9,3326.8,1.4615]
[1765355812239,0.00235215,3326.9,3326.8,5.74831668]
[1765355812440,0.00235215,3326.9,3326.8,7.3656563]
[1765355813437,0.00235215,3326.9,3326.8,5.74831668]
[1765355814746,0.00235215,3326.9,3326.8,4.81959]
[1765355818052,0.70095215,3326.9,3326.8,4.81959]
[1765355818255,1.38445215,3326.9,3326.8,1.61179]
[1765355819447,0.00235215,3326.9,3326.8,1.61179]
[1765355819851,0.00235215,3326.9,3326.8,4.81959]
[1765355821349,1.38445215,3326.9,3326.8,1.61179]
[1765355821555,1.3821,3326.6,3326.5,1.367]
[1765355821857,1.7986,3326.5,3326.4,3.72014387]
[1765355822159,1.3821,3326.2,3326.1,1.51732]
[1765355822363,2.31082668,3326.2,3326.1,1.51732]
[1765355822647,1.3821,3326.2,3326.1,1.51732]
[1765355823043,1.3821,3326.2,3326.1,0.82532]
[1765355823948,1.3821,3326.2,3326.1,0.15032]
[1765355824151,1.3821,3326.2,3325.9,3.2078]
[1765355824452,1.3821,3326.0,3325.9,4.5748]
[1765355825355,1.7986,3326.0,3325.9,0.675]
[1765355826946,1.3821,3325.8,3325.7,0.00451079]
[1765355827951,1.3821,3325.8,3325.7,0.67951079]
[1765355828552,1.3916,3325.8,3325.7,1.39491079]
[1765355829655,1.8429,3326.0,3325.9,1.4052]
[1765355831165,1.8429,3326.0,3325.9,0.6898]
[1765355831957,1.421,3326.2,3326.1,1.3738]
[1765355832855,0.7232,3326.2,3326.1,1.3738]
[1765355833159,1.8375,3326.5,3326.4,0.6825]
[1765355833451,1.421,3325.8,3325.7,1.37831079]
[1765355834359,0.7232,3325.8,3325.7,1.37831079]
[1765355834664,1.8416,3326.0,3325.9,1.3738]
[1765355835258,3.2078,3326.2,3325.7,0.00451079]
[1765355835259,4.6288,3326.2,3326.1,1.3738]
[1765355835560,1.8375,3326.5,3326.4,1.3738]
[1765355836360,1.8375,3326.5,3326.4,0.6825]
[1765355836854,1.8375,3326.5,3326.0,0.4069]
[1765355837061,0.7232,3325.8,3325.7,1.37831079]
[1765355837559,0.4165,3326.5,3325.7,1.37831079]
[1765355838458,1.8375,3326.5,3326.4,0.6825]
[1765355838665,1.8375,3326.5,3325.7,0.00451079]
[1765355839367,0.4165,3327.0,3326.8,0.6825]
[1765355839368,1.42335215,3326.9,3326.8,0.6825]
[1765355840556,1.42335215,3326.9,3326.8,1.3738]
[1765355842159,0.72555215,3326.9,3326.8,1.3738]
[1765355842865,1.42335215,3326.9,3326.8,1.3738]
[1765355843162,0.72555215,3326.9,3326.8,1.3738]
[1765355843363,1.42335215,3326.9,3326.8,1.3738]
[1765355845458,1.421,3326.8,3326.7,3.8903]
[1765355845966,0.72555215,3326.9,3326.8,1.3738]
[1765355846362,0.00235215,3326.9,3326.8,1.3738]
[1765355849269,0.72555215,3326.9,3326.8,1.3738]
[1765355849566,1.42335215,3326.9,3326.8,1.3738]
[1765355849762,1.42335215,3326.9,3326.8,0.6825]
[1765355849962,1.42335215,3326.9,3326.8,1.3738]
[1765355850768,0.00235215,3326.9,3326.8,1.3738]
[1765355850969,0.00235215,3326.9,3326.8,1.52409]
[1765355851867,0.00235215,3326.9,3326.7,3.2078]
[1765355851868,2.32395671,3327.8,3327.7,1.3738]
[1765355852259,2.0644762,3327.8,3327.7,1.3738]
[1765355852665,1.3666762,3327.8,3327.7,1.37599171]
[1765355852965,0.00284523,3327.8,3327.7,1.37599171]
[1765355853165,0.00284523,3327.8,3327.7,4.58379171]
[1765355854174,0.72604523,3327.8,3327.7,4.58379171]
[1765355854374,0.00284523,3327.8,3327.7,4.58379171]
[1765355855976,0.72604523,3327.8,3327.7,4.58379171]
[1765355856577,0.00284523,3327.8,3327.7,4.58379171]
[1765355857164,0.00284523,3327.8,3327.7,4.73404171]
[1765355859679,5.0836,3328.5,3328.4,1.3808]
[1765355860178,0.7397,3328.1,3328.0,1.6766]
[1765355860880,0.00265321,3328.1,3328.0,1.6766]
[1765355862378,1.45785321,3328.1,3328.0,0.7079]
[1765355862574,1.45785321,3328.1,3328.0,1.3808]
[1765355862775,0.74235321,3328.1,3328.0,1.6514]
[1765355862980,0.00265321,3328.1,3328.0,1.6514]
[1765355863182,0.74235321,3328.1,3328.0,1.6514]
[1765355863382,0.00265321,3328.1,3328.0,1.6514]
[1765355872086,0.00265321,3328.1,3328.0,1.80164]
[1765355872284,0.00265321,3328.1,3328.0,3.41897962]
[1765355872986,1.29390303,3329.1,3329.0,1.3808]
[1765355873391,1.29390303,3329.1,3329.0,4.5886]
[1765355873988,1.2974039,3329.1,3329.0,4.5886]
[1765355874194,0.5819039,3329.1,3329.0,5.0207]
[1765355874491,1.2974039,3329.1,3329.0,5.0207]
[1765355874692,0.5819039,3329.1,3329.0,5.0207]
[1765355875387,0.00350087,3329.1,3329.0,5.0207]
[1765355878410,1.45870087,3329.1,3329.0,5.0207]
[1765355880204,0.74320087,3329.1,3329.0,5.0207]
[1765355880408,1.45870087,3329.1,3329.0,3.2078]
[1765355880609,1.45870087,3329.1,3329.0,3.9157]
[1765355881112,0.00350087,3329.1,3329.0,5.0207]
[1765355881609,0.00350087,3329.1,3329.0,5.17089]
[1765355885315,3.2078,3329.6,3329.0,5.17089]
[1765355885316,1.4552,3329.6,3329.5,1.3808]
[1765355885512,0.7397,3329.6,3329.5,1.8129]
[1765355885811,1.4552,3329.6,3329.5,1.3808]
[1765355886212,1.45748728,3329.6,3329.5,1.3808]
[1765355886513,1.4552,3329.3,3329.2,1.38531079]
[1765355887015,1.4552,3329.3,3329.2,0.00451079]
[1765355888515,2.09589088,3329.3,3329.2,1e-08]
[1765355889018,1.3576,3328.5,3328.4,4.6607]
[1765355889409,3.6142,3329.0,3328.9,1.4529]
[1765355889410,4.5654,3329.0,3328.9,1.4529]
[1765355889715,2.28391755,3329.3,3329.2,1.4529]
[1765355890114,1.3576,3329.3,3329.2,1.4529]
[1765355890509,2.28391755,3329.3,3329.2,1.4529]
[1765355890708,2.28391755,3329.3,3329.2,0.7264]
[1765355891515,2.92482453,3329.3,3329.2,0.7264]
[1765355892415,2.92482453,3329.3,3328.9,0.00451079]
[1765355892416,1.8116,3329.0,3328.9,0.00451079]
[1765355892614,2.73791755,3329.0,3328.9,0.00451079]
[1765355894812,1.8116,3329.0,3328.9,0.00451079]
[1765355895023,2.73791755,3329.0,3328.9,0.00451079]
[1765355896519,3.3799828,3329.0,3328.9,0.00451079]
[1765355898923,3.3799828,3329.0,3328.9,0.74141079]
[1765355899324,2.45366525,3329.0,3328.9,1.45381079]
[1765355899618,2.03576525,3329.0,3328.9,1.45381079]
[1765355899822,0.7225,3329.0,3328.9,1.45381079]
[1765355901329,1.3937,3329.0,3328.9,1.45381079]
[1765355902610,2.73791755,3329.0,3328.9,0.74141079]
[1765355904434,2.73791755,3329.0,3328.9,0.00451079]
[1765355905220,3.38463598,3329.0,3328.9,0.00451079]
[1765355905524,2.73791755,3329.0,3328.9,0.00451079]
[1765355905721,2.73791755,3329.0,3328.9,1.45381079]
[1765355905918,2.32001755,3329.0,3328.9,1.45381079]
[1765355908724,2.73791755,3329.0,3328.9,0.74141079]
[1765355910522,4.6015,3329.3,3329.2,0.7369]
[1765355910722,1.39598728,3329.6,3329.5,0.7369]
[1765355910923,2.04252491,3329.6,3329.5,0.7369]
[1765355911120,0.72478728,3329.6,3329.5,1.8875]
[1765355911622,0.00228728,3329.6,3329.5,2.81381755]
[1765355911821,0.00228728,3329.6,3329.5,1.8875]
[1765355912326,1.3937,3329.4,3329.3,4.81710739]
[1765355912525,1.8116,3329.0,3328.9,0.00451079]
[1765355912825,5.94571755,3329.0,3328.9,0.00451079]
[1765355915429,5.0194,3329.0,3328.9,0.00451079]
[1765355915622,5.94571755,3329.0,3328.9,0.00451079]
[1765355916225,1.8116,3329.0,3328.9,0.74141079]
[1765355916431,0.7225,3329.0,3328.9,1.45381079]
[1765355916623,1.3937,3329.0,3328.9,1.45381079]
[1765355917234,4.6015,3329.4,3329.3,0.7369]
[1765355917438,5.25532678,3329.4,3329.3,0.7369]
[1765355917928,1.3819,3329.1,3329.0,1.8805]
[1765355920233,1.3819,3329.1,3329.0,1.4423]
[1765355920434,1.38418728,3329.6,3329.5,1.4423]
[1765355920625,2.03794913,3329.6,3329.5,1.4423]
[1765355922432,0.00228728,3329.6,3329.5,5.0944]
[1765355923130,0.69948728,3329.6,3329.5,5.0944]
[1765355923526,1.38418728,3329.6,3329.5,5.0944]
[1765355924330,0.00228728,3329.6,3329.5,5.0944]
[1765355925128,1.38418728,3329.6,3329.5,4.6501]
[1765355925831,1.38418728,3329.6,3329.5,0.7363]
[1765355927032,1.38418728,3329.6,3329.5,1.4423]
[1765355927535,1.38418728,3329.6,3329.5,0.7363]
[1765355929838,1.38418728,3329.6,3329.5,1.4423]
[1765355930432,0.69948728,3329.6,3329.5,1.4423]
[1765355931034,0.69948728,3329.6,3329.5,1.8866]
[1765355932334,0.00228728,3329.6,3329.5,1.8866]
[1765355932832,0.69948728,3329.6,3329.5,1.8866]
[1765355933732,0.00228728,3329.6,3329.5,5.0944]
[1765355935840,3.2078,3330.3,3330.2,1.4423]
[1765355936040,1.53477,3330.7,3330.6,1.4423]
[1765355936242,1.3819,3330.2,3330.1,3.2078]
[1765355936441,1.3819,3329.8,3329.7,0.7363]
[1765355936642,1.3819,3329.8,3329.7,1.4423]
[1765355936842,1.38473471,3329.8,3329.7,1.44549353]
[1765355937342,0.70003471,3329.8,3329.7,1.44549353]
[1765355937739,0.00283471,3329.8,3329.7,1.44549353]
[1765355937946,0.00283471,3329.8,3329.7,4.65329353]
[1765355938241,0.00283471,3329.8,3329.7,6.26460016]
[1765355941353,0.00283471,3329.8,3329.7,4.65329353]
[1765355943047,3.471e-05,3329.8,3329.7,4.80345353]
[1765355943248,3.2078,3330.5,3329.7,4.80345353]
[1765355943249,4.9722709,3330.5,3330.4,1.4423]
[1765355943554,4.9722709,3330.5,3330.4,0.7363]
[1765355943948,4.9722709,3330.5,3330.0,1.8378]
[1765355943949,0.6972,3330.1,3330.0,1.8378]
[1765355944148,0.6972,3329.8,3329.7,6.26460016]
[1765355944454,1.38551947,3330.1,3330.0,1.4423]
[1765355946751,1.3819,3329.8,3329.7,4.80345353]
[1765355947358,0.6972,3329.8,3329.7,4.80345353]
[1765355947553,1.7679,3330.0,3329.9,1.3928]
[1765355947861,1.7679,3330.0,3329.7,3.36115353]
[1765355947862,0.00361947,3330.1,3330.0,1.7882]
[1765355951560,0.00361947,3330.1,3330.0,3.39950663]
[1765355952859,0.67571947,3330.1,3330.0,3.39950663]
[1765355953361,0.67571947,3330.1,3330.0,1.7882]
[1765355954557,0.00361947,3330.1,3330.0,2.8643647]
[1765355954761,0.00361947,3330.1,3330.0,5.25004119]
[1765355955063,0.82497,3330.7,3330.6,1.3928]
[1765355955264,0.82497,3330.7,3330.6,4.6006]
[1765355955464,0.15287,3330.7,3330.6,4.6006]
[1765355955863,0.15639461,3330.7,3330.6,4.6006]
[1765355956163,1.50249461,3330.7,3330.6,4.6006]
[1765355956365,1.50249461,3330.7,3330.6,3.9273]
[1765355956664,1.50249461,3330.7,3330.6,4.6006]
[1765355960066,0.15639461,3330.7,3330.6,4.6006]
[1765355960367,1.50249461,3330.7,3330.6,4.6006]
[1765355960568,0.82849461,3330.7,3330.6,4.6006]
[1765355961277,0.15639461,3330.7,3330.6,4.6006]
[1765355963467,0.15639461,3330.7,3330.6,6.21188668]
[1765355965172,0.15639461,3330.7,3330.6,4.6006]
[1765355965774,1.9989711,3331.6,3331.5,1.3928]
[1765355966479,1.3461,3331.3,3331.2,1.39730362]
[1765355966874,1.3495022,3331.3,3331.2,1.39730362]
[1765355968577,0.6755022,3331.3,3331.2,1.39730362]
[1765355968980,1.3495022,3331.3,3331.2,1.39730362]
[1765355969175,0.6755022,3331.3,3331.2,1.39730362]
[1765355970079,0.0034022,3331.3,3331.2,1.39730362]
[1765355970278,0.6755022,3331.3,3331.2,1.39730362]
[1765355971176,0.0034022,3331.3,3331.2,1.39730362]
[1765355971880,1.3495022,3331.3,3331.2,0.72400362]
[1765355972382,1.3495022,3331.3,3331.2,1.39730362]
[1765355974282,0.6755022,3331.3,3331.2,1.39730362]
[1765355974581,1.3495022,3331.3,3331.2,1.39730362]
[1765355974777,5.4833169,3331.3,3331.2,0.00450362]
[1765355974979,1.3461,3330.4,3330.3,3.0028857]
[1765355975278,1.3461,3330.4,3330.3,1.3928]
[1765355979288,1.46790362,3330.7,3330.6,1.3582]
[1765355980478,0.73050362,3330.7,3330.6,1.3582]
[1765355981085,1.46790362,3330.7,3330.6,1.3582]
[1765355981480,1.9075,3330.5,3330.4,2.2899857]
[1765355982084,1.9075,3330.5,3330.4,2.9682857]
[1765355983785,1.9075,3330.5,3330.4,1.3582]
[1765355984885,1.4634,3330.5,3330.4,1.3582]
[1765355990896,0.726,3330.5,3330.4,1.3582]
[1765355991186,0.00450362,3330.7,3330.6,1.3582]
[1765355991393,0.73050362,3330.7,3330.6,1.3582]
[1765355991693,1.46790362,3330.7,3330.6,1.3582]
[1765355993393,0.00450362,3330.7,3330.6,1.3582]
[1765355993588,0.00450362,3330.7,3330.6,4.566]
[1765355993988,0.00450362,3330.7,3330.6,6.1760857]
[1765355994694,0.00450362,3330.7,3330.6,4.566]
[1765355996397,0.00450362,3330.7,3330.6,4.71612]
[1765356000694,0.73050362,3330.7,3330.6,4.71612]
[1765356000885,0.00450362,3330.7,3330.6,1.3582]
[1765356001090,0.74190362,3330.7,3330.6,1.6110518]
[1765356001292,1.46790362,3330.7,3330.6,2.2909518]
[1765356001592,1.46790362,3330.7,3330.6,2.9692518]
[1765356002901,1.46790362,3330.7,3330.6,2.2909518]
[1765356003193,1.4634,3330.6,3330.4,1.6110518]
[1765356003399,1.9075,3330.5,3330.4,1.6110518]
[1765356003595,1.4634,3330.4,3330.3,1.6110518]
[1765356004688,1.4634,3330.4,3330.0,0.00450362]
[1765356004689,1.4634,3330.1,3330.0,0.00450362]
[1765356004890,3.03989793,3330.1,3330.0,0.00450362]
[1765356005190,3.03989793,3330.1,3329.7,0.00319353]
[1765356005191,1.4634,3329.8,3329.7,0.00319353]
[1765356005395,3.03944976,3329.8,3329.7,0.00319353]
[1765356006296,2.38973142,3329.8,3329.7,0.00319353]
[1765356009400,1.4634,3329.8,3329.7,0.00319353]
[1765356011597,2.38973142,3329.8,3329.7,0.71709353]
[1765356011903,2.38973142,3329.8,3329.7,0.00319353]
[1765356012201,2.38973142,3329.8,3329.7,0.71709353]
[1765356013306,2.38973142,3329.8,3329.7,0.00319353]
[1765356015008,1.4634,3329.8,3329.7,0.00319353]
[1765356015608,1.4634,3329.8,3329.7,0.71709353]
[1765356016305,1.4634,3329.8,3329.7,1.44829353]
[1765356016702,4.5856,3330.4,3330.3,0.7139]
[1765356017408,4.5856,3330.4,3330.0,0.4024]
[1765356017409,1.3778,3330.1,3330.0,1.8475]
[1765356017604,0.703,3330.1,3330.0,1.8475]
[1765356017804,1.3778,3330.1,3330.0,1.8475]
[1765356018205,0.703,3330.1,3330.0,1.8475]
[1765356019213,1.3778,3330.1,3330.0,1.8475]
[1765356019819,4.5856,3330.4,3330.3,1.4451]
[1765356020008,1.3778,3330.4,3330.3,1.4451]
[1765356020618,1.3778,3330.4,3330.3,0.7139]
[1765356021317,1.3778,3330.4,3330.3,1.4451]
[1765356021715,0.703,3330.4,3330.3,1.4451]
[1765356021916,0.703,3330.4,3330.0,0.55255]
[1765356021917,1.3778,3330.1,3330.0,5.20545]
[1765356022420,0.703,3330.1,3330.0,5.20545]
[1765356022712,2.30413142,3330.4,3330.3,1.4451]
[1765356022920,1.3778,3330.1,3330.0,4.80305]
[1765356023414,0.703,3330.1,3330.0,4.80305]
[1765356023615,0.703,3330.1,3330.0,5.16745]
[1765356023818,1.3778,3330.1,3330.0,5.16745]
[1765356024018,1.3778,3330.1,3330.0,4.80305]
[1765356024522,1.3778,3330.1,3330.0,4.6529]
[1765356028018,2.30413142,3330.1,3330.0,4.6529]
[1765356028716,2.30413142,3330.1,3330.0,3.2078]
[1765356028921,1.3778,3329.8,3329.7,1.44829353]
[1765356029122,2.30413142,3329.8,3329.7,1.44829353]
[1765356030928,0.703,3329.8,3329.7,1.44829353]
[1765356031120,1.8217,3330.0,3329.9,1.4451]
[1765356031327,1.8217,3330.0,3329.9,0.7139]
[1765356031522,1.3778,3329.8,3329.7,0.71709353]
[1765356032026,1.3778,3329.8,3329.7,1.44829353]
[1765356034119,2.30413142,3329.8,3329.7,1.44829353]
[1765356034320,1.3778,3329.8,3329.7,1.44829353]
[1765356041833,1.3778,3329.8,3329.7,0.71709353]
[1765356042026,1.3778,3329.8,3329.7,0.00319353]
[1765356042834,1.3778,3329.8,3329.7,0.72049353]
[1765356044128,1.3778,3329.8,3329.7,0.00319353]
[1765356044329,1.3778,3329.8,3329.7,0.72049353]
[1765356045632,1.3778,3329.8,3329.7,0.00319353]
[1765356050031,2.30413142,3329.8,3329.7,0.00319353]
[1765356050235,2.30413142,3329.8,3329.7,0.72049353]
[1765356050632,0.703,3329.8,3329.7,1.39969353]
[1765356050836,1.422,3330.0,3329.9,1.3965]
[1765356051143,2.47804216,3330.0,3329.9,0.7173]
[1765356052340,0.65044216,3330.0,3329.9,1.3965]
[1765356052636,3.6517,3330.5,3329.8,3.2078]
[1765356052637,0.6886,3330.2,3330.1,1.3965]
[1765356053234,1.422,3330.2,3330.1,1.3965]
[1765356054341,2.07268462,3330.2,3330.1,1.3965]
[1765356054639,1.422,3329.8,3329.7,0.72049353]
[1765356054839,2.34833142,3329.8,3329.7,0.00319353]
[1765356055140,2.34833142,3329.8,3329.7,1.39969353]
[1765356055335,2.34833142,3329.8,3329.7,3.01074533]
[1765356055637,0.6886,3329.8,3329.7,3.01074533]
[1765356055834,0.6886,3330.0,3329.9,1.3965]
[1765356056137,5.0737,3330.5,3330.4,0.7173]
[1765356056340,0.6886,3330.1,3330.0,1.8237]
[1765356056535,1.422,3330.1,3330.0,1.3965]
[1765356058143,3.9412,3330.1,3329.7,1.61424533]
[1765356058440,1.422,3329.8,3329.7,3.01074533]
[1765356059242,1.422,3329.8,3329.7,0.72049353]
[1765356059537,1.422,3329.8,3329.7,1.39969353]
[1765356061037,0.6886,3329.8,3329.7,1.39969353]
[1765356061237,3.2078,3330.1,3330.0,1.8237]
[1765356061434,5.0737,3330.5,3330.4,1.3965]
[1765356061737,0.65117501,3330.5,3330.4,1.3965]
[1765356061938,0.69310362,3330.7,3330.6,1.3965]
[1765356062138,1.34427863,3330.7,3330.6,1.3965]
[1765356062339,0.69310362,3330.7,3330.6,1.3965]
[1765356062839,1.42650362,3330.7,3330.6,1.3965]
[1765356066042,1.42650362,3330.7,3330.6,0.7173]
[1765356066343,0.69310362,3330.7,3330.6,1.3965]
[1765356067034,0.00450362,3330.7,3330.6,1.3965]
[1765356067236,0.69310362,3330.7,3330.6,1.3965]
[1765356067643,1.42650362,3330.7,3330.6,1.3965]
[1765356069545,0.00450362,3330.7,3330.6,1.3965]
[1765356071047,0.67580362,3330.7,3330.6,1.3965]
[1765356072349,1.40100362,3330.7,3330.6,1.3965]
[1765356072551,1.40100362,3330.7,3330.6,1.4563]
[1765356073049,1.40100362,3330.7,3330.6,0.7173]
[1765356074151,1.3965,3330.4,3330.3,4.6806]
[1765356074452,1.40100362,3330.7,3330.6,1.4728]
[1765356076353,1.40100362,3330.7,3330.6,0.7338]
[1765356076658,1.40100362,3330.7,3330.6,1.4728]
[1765356080351,1.40100362,3330.7,3329.9,1.6110518]
[1765356080352,1.8093,3330.0,3329.9,1.6110518]
[1765356080557,1.3965,3329.8,3329.7,0.73699353]
[1765356080759,1.3965,3329.8,3329.7,0.00319353]
[1765356082355,1.8093,3329.5,3329.4,0.00450362]
[1765356082551,1.3965,3328.9,3328.8,3.0838518]
[1765356083154,1.3965,3328.9,3328.8,1.4728]
[1765356083356,1.39994829,3328.9,3328.8,1.47585101]
[1765356084256,0.67474829,3328.9,3328.8,1.47585101]
[1765356085265,1.39994829,3328.9,3328.8,1.47585101]
[1765356085467,2.32681321,3328.9,3328.8,0.00305101]
[1765356087070,1.39994829,3328.9,3328.8,1.47585101]
[1765356089660,0.67474829,3328.9,3328.8,1.47585101]
[1765356089857,1.39994829,3328.9,3328.8,1.47585101]
[1765356090264,0.00344829,3328.9,3328.8,1.47585101]
[1765356090464,0.67474829,3328.9,3328.8,1.47585101]
[1765356090664,1.39994829,3328.9,3328.8,1.47585101]
[1765356091359,1.39994829,3328.9,3328.8,0.73685101]
[1765356092274,1.39994829,3328.9,3328.8,1.47585101]
[1765356093274,2.32681321,3328.9,3328.8,0.00305101]
[1765356095077,0.67474829,3328.9,3328.8,1.47585101]
[1765356095471,1.39994829,3328.9,3328.8,1.47585101]
[1765356097076,0.67474829,3328.9,3328.8,1.47585101]
[1765356097278,0.00344829,3328.9,3328.8,1.47585101]
[1765356097571,0.67474829,3328.9,3328.8,1.47585101]
[1765356097878,1.39124829,3328.9,3328.8,1.47585101]
[1765356100676,1.39124829,3328.9,3328.8,0.00305101]
[1765356100879,1.39124829,3328.9,3328.8,0.71895101]
[1765356102474,1.39124829,3328.9,3328.8,1.42975101]
[1765356102880,0.00344829,3328.9,3328.8,1.42975101]
[1765356103379,0.67274829,3328.9,3328.8,1.42975101]
[1765356103776,0.00344829,3328.9,3328.8,1.42975101]
[1765356104779,0.00344829,3328.9,3328.8,1.57995101]
[1765356106384,1.3858,3329.6,3329.5,1.4267]
[1765356106578,4.2899,3330.0,3329.9,0.7159]
[1765356106779,5.0064,3330.0,3329.9,1.4267]
[1765356106981,0.6693,3329.6,3329.5,1.829]
[1765356107279,1.3858,3329.6,3329.5,1.829]
[1765356107583,0.67177796,3329.6,3329.5,1.829]
[1765356108482,0.00247796,3329.6,3329.5,1.829]
[1765356110277,0.00247796,3329.6,3329.5,3.4400518]
[1765356112389,0.00247796,3329.6,3329.5,1.829]
[1765356114689,0.67177796,3329.6,3329.5,1.829]
[1765356115183,0.00247796,3329.6,3329.5,1.829]
[1765356115487,0.67177796,3329.6,3329.5,1.829]
[1765356115688,1.38827796,3329.6,3329.5,1.4267]
[1765356116491,1.3858,3329.5,3329.4,1.57687]
[1765356116691,0.6693,3329.5,3329.4,1.57687]
[1765356116990,1.3858,3329.5,3329.4,1.57687]
[1765356117686,0.6693,3329.5,3329.4,1.57687]
[1765356118893,1.3858,3329.5,3329.4,1.57687]
[1765356120084,1.3858,3329.5,3329.4,1.4267]
[1765356120284,1.3858,3329.3,3329.2,4.6345]
[1765356120682,0.6693,3329.3,3329.2,4.6345]
[1765356121388,1.3858,3329.3,3329.2,4.6345]
[1765356121588,0.6693,3329.3,3329.2,4.6345]
[1765356121886,2.31266492,3329.3,3329.2,3.2078]
[1765356122089,1.3858,3328.9,3328.8,0.00305101]
[1765356122282,2.31266492,3328.9,3328.8,0.00305101]
[1765356123290,1.3858,3328.2,3328.1,3.9237]
[1765356123891,1.3858,3328.2,3328.1,4.6345]
[1765356124290,1.3858,3328.2,3328.1,4.63809901]
[1765356125295,0.6693,3328.2,3328.1,4.63809901]
[1765356125994,1.3858,3328.2,3328.1,4.63809901]
[1765356127098,1.3858,3328.2,3328.1,3.92729901]
[1765356127498,1.3858,3328.2,3328.1,4.63809901]
[1765356129302,1.3858,3328.2,3328.1,3.92729901]
[1765356130504,1.3858,3328.2,3328.1,4.61629901]
[1765356134808,1.3858,3328.2,3328.1,0.71949901]
[1765356135302,1.3858,3328.2,3328.1,0.00359901]
[1765356136004,1.3858,3328.2,3328.1,0.72699901]
[1765356137407,1.3858,3328.2,3328.1,0.00359901]
[1765356138913,1.3858,3328.2,3328.1,0.72699901]
[1765356140103,1.3858,3328.2,3328.1,1.41599901]
[1765356140506,2.31299674,3328.2,3328.1,0.00359901]
[1765356145014,2.31299674,3328.2,3328.1,0.72699901]
[1765356145312,2.31299674,3328.2,3328.1,1.41599901]
[1765356145916,1.3858,3328.2,3328.1,1.41599901]
[1765356149419,0.6693,3328.2,3328.1,1.41599901]
[1765356149618,1.3936,3328.2,3328.1,1.41599901]
[1765356151716,3.2078,3328.3,3328.2,1.4124]
[1765356151911,1.4265,3328.2,3328.1,0.72699901]
[1765356152115,1.4265,3328.2,3328.1,1.41599901]
[1765356152922,1.4265,3328.2,3328.1,0.72699901]
[1765356153115,1.4265,3328.2,3328.1,1.41599901]
[1765356156022,1.4265,3328.2,3328.1,0.72699901]
[1765356156321,1.4265,3328.2,3328.1,0.00359901]
[1765356157712,2.03916542,3329.5,3328.9,0.1502]
[1765356157925,0.41144537,3329.5,3329.4,4.13499674]
[1765356158116,0.419,3330.0,3329.4,6.28799288]
[1765356158421,0.419,3330.0,3329.6,0.15017]
[1765356158620,0.4431,3330.5,3329.9,5.74598009]
[1765356158819,0.00450362,3330.1,3330.0,1.07734674]
[1765356159014,0.4431,3330.5,3330.0,5.51094614]
[1765356159214,0.4431,3330.5,3330.4,3.2078]
[1765356159421,0.44682824,3330.5,3330.4,3.2078]
[1765356160024,0.44682824,3330.5,3330.4,4.13499674]
[1765356163123,0.44682824,3330.5,3330.4,3.2078]
[1765356163922,1.86192824,3330.5,3330.4,3.2078]
[1765356171725,1.17682824,3330.5,3330.4,3.2078]
[1765356171925,0.44682824,3330.5,3330.4,3.2078]
[1765356173028,0.44682824,3330.5,3330.4,3.35793]
[1765356174133,0.00372824,3330.5,3330.4,3.35793]
[1765356175035,0.00450362,3330.8,3330.6,0.15012]
[1765356176239,0.00680225,3330.8,3330.6,0.15317319]
[1765356180132,0.00680225,3330.8,3330.7,0.15012]
[1765356185338,1.42190225,3330.8,3330.7,0.15012]